bitfinex-derivatives/quotes_ETHF0:USTF0_20260112
["timestamp","ask_amount","ask_price","bid_price","bid_amount"]
[1768228591361,3.53239659,3095.3,3093.2,0.00395176]
[1768228591950,3.37065659,3095.3,3093.9,0.16181]
[1768228593160,3.37065659,3095.3,3093.2,3.66066525]
[1768228593161,3.37065659,3095.3,3094.0,0.16181]
[1768228593353,3.37065659,3095.3,3093.2,3.66066525]
[1768228593354,3.37065659,3095.3,3093.3,0.16184]
[1768228593659,1.278,3095.4,3094.0,0.16181]
[1768228593860,1.278,3095.4,3094.1,0.1618]
[1768228594060,3.37065659,3095.9,3093.3,3.65671349]
[1768228594264,4.64865659,3095.9,3094.4,0.16179]
[1768228595160,3.54586036,3095.8,3093.9,1.1]
[1768228595360,3.54586036,3095.1,3093.2,0.00395176]
[1768228595567,3.54586036,3094.9,3093.2,0.00395176]
[1768228595762,3.54586036,3094.7,3093.2,0.00395176]
[1768228596171,3.54586036,3094.5,3092.7,0.16188]
[1768228596377,3.54586036,3094.3,3092.1,0.16191]
[1768228596562,3.54586036,3094.3,3091.7,0.27400709]
[1768228596563,3.54586036,3094.3,3092.3,0.1619]
[1768228597271,3.54586036,3094.3,3092.3,0.00232038]
[1768228597468,1.279,3094.2,3092.6,0.16188]
[1768228597662,3.54586036,3094.3,3092.6,0.16188]
[1768228597963,1.279,3094.2,3092.6,0.16188]
[1768228598162,1.279,3094.1,3092.6,0.16188]
[1768228598563,1.279,3094.1,3092.3,0.00232038]
[1768228598768,3.54586036,3094.0,3092.3,0.00232038]
[1768228599562,8.05986036,3093.9,3092.3,0.00232038]
[1768228599765,3.54586036,3093.8,3092.3,0.00232038]
[1768228600567,3.54586036,3093.8,3091.4,0.16194]
[1768228600758,3.70768036,3093.8,3091.4,1.26194]
[1768228600966,3.54586036,3093.3,3090.8,2.04650499]
[1768228601565,3.54586036,3093.0,3090.8,2.05004886]
[1768228601765,3.54586036,3092.8,3090.8,0.16551387]
[1768228601972,3.54586036,3092.8,3090.9,1.88453499]
[1768228602167,1.279,3092.7,3091.0,0.16196]
[1768228602362,3.54586036,3092.7,3091.0,0.16196]
[1768228602563,3.54586036,3093.4,3091.4,1.88453499]
[1768228602774,3.54586036,3093.4,3091.9,1.88453499]
[1768228602969,3.54586036,3094.0,3092.4,1.88453499]
[1768228603378,1.2815561,3093.9,3092.4,1.88453499]
[1768228603672,1.2815561,3093.9,3092.4,2.04642499]
[1768228604072,4.82741646,3093.9,3092.0,1.88453499]
[1768228604374,3.54586036,3093.8,3092.0,1.88453499]
[1768228605461,3.54586036,3093.8,3091.9,0.16192]
[1768228605665,3.70768036,3093.8,3091.4,0.16194]
[1768228605866,1.2815561,3093.9,3091.4,0.16194]
[1768228605867,3.54586036,3093.6,3091.4,0.16194]
[1768228606179,3.70769036,3093.6,3091.4,0.16194]
[1768228606365,1.2815561,3093.9,3091.2,1.88453499]
[1768228606366,3.70770036,3093.4,3091.2,1.88453499]
[1768228606561,1.2815561,3093.9,3090.8,0.00354387]
[1768228606562,3.54586036,3093.2,3090.9,1.39]
[1768228606767,3.54586036,3093.0,3090.8,0.16552387]
[1768228606967,3.54586036,3092.4,3090.8,0.00354387]
[1768228608477,1.279,3092.3,3090.8,0.00354387]
[1768228608876,4.82486036,3092.3,3090.8,0.00354387]
[1768228609179,3.54586036,3092.3,3090.8,0.00354387]
[1768228609477,1.279,3092.4,3091.1,1.88453499]
[1768228609874,3.54586036,3092.8,3091.1,1.88453499]
[1768228610074,1.279,3092.7,3091.1,1.88453499]
[1768228610276,3.54586036,3092.6,3090.8,0.00354387]
[1768228610677,3.54586036,3092.4,3090.8,0.00354387]
[1768228611072,4.515,3092.3,3090.8,0.00354387]
[1768228611275,3.54586036,3092.2,3090.8,0.00354387]
[1768228611577,1.279,3092.1,3090.8,0.00354387]
[1768228611879,3.54586036,3092.0,3089.7,0.16203]
[1768228612067,3.54586036,3092.0,3090.4,1.88453499]
[1768228612470,3.54586036,3092.6,3090.4,1.88453499]
[1768228612781,3.54586036,3092.4,3090.6,0.16199]
[1768228613584,3.54586036,3092.4,3090.4,1.88839123]
[1768228613780,3.54586036,3092.4,3090.4,0.00385624]
[1768228614482,3.54586036,3092.2,3090.4,0.00385624]
[1768228614681,1.28,3092.1,3090.4,0.00385624]
[1768228614879,4.82586036,3092.1,3090.4,0.00385624]
[1768228615082,4.82586036,3092.0,3090.4,0.00385624]
[1768228615276,1.28,3091.9,3090.4,0.00385624]
[1768228615481,4.82586036,3091.9,3090.4,0.00385624]
[1768228615678,3.54586036,3091.8,3090.4,0.00385624]
[1768228616780,1.28,3091.7,3090.4,0.00385624]
[1768228616982,0.0028355,3091.7,3090.4,0.00385624]
[1768228617183,1.28,3091.6,3090.4,0.00385624]
[1768228617682,3.54586036,3091.5,3090.4,0.00385624]
[1768228617885,3.54586036,3091.5,3089.4,0.16205]
[1768228618181,3.70781036,3091.3,3088.9,3.41605903]
[1768228618388,3.70781036,3091.3,3088.9,3.14660499]
[1768228618587,1.28,3091.2,3089.4,2.04658499]
[1768228618782,1.28,3091.2,3089.4,2.05030729]
[1768228619083,3.54586036,3091.1,3089.4,2.05030729]
[1768228619484,3.54586036,3091.1,3089.4,1.88825729]
[1768228619786,3.54586036,3090.9,3089.4,0.0037223]
[1768228620482,3.54586036,3090.7,3088.5,1.20355889]
[1768228620685,3.70785036,3090.5,3088.6,1.88453499]
[1768228620984,4.82586036,3090.5,3089.1,1.88453499]
[1768228621184,4.82586036,3090.5,3088.7,3.14661499]
[1768228621583,3.54586036,3090.5,3088.8,0.16208]
[1768228621783,1.28,3090.4,3088.8,0.16208]
[1768228622076,1.28,3090.3,3088.9,0.16208]
[1768228622582,3.54586036,3090.5,3088.7,2.9878912]
[1768228622888,18.401404,3096.6,3089.2,2.04659499]
[1768228622889,3.70781036,3091.4,3089.2,2.04659499]
[1768228623187,3.54586036,3091.2,3089.2,2.04659499]
[1768228623383,3.70782036,3091.2,3089.2,0.16206]
[1768228623682,3.54586036,3091.0,3088.7,0.00335621]
[1768228623890,3.70784036,3090.7,3088.7,0.00335621]
[1768228624184,6.78386036,3091.3,3089.3,1.88453499]
[1768228624373,1.28,3091.2,3089.3,1.88453499]
[1768228624580,3.61199438,3091.1,3089.3,1.88453499]
[1768228624783,3.61482988,3091.7,3089.8,1.88453499]
[1768228625085,0.0028355,3091.7,3090.3,0.162]
[1768228625386,1.2838355,3091.7,3090.3,2.04653499]
[1768228625983,1.2838355,3091.7,3089.8,3.53243692]
[1768228625984,4.89582988,3091.7,3089.8,1.88453499]
[1768228626182,3.61199438,3091.6,3089.8,1.88453499]
[1768228627082,3.61199438,3091.4,3089.7,0.16203]
[1768228627587,1.281,3091.6,3089.7,1.88453499]
[1768228627780,1.281,3091.6,3090.0,0.16202]
[1768228627980,4.89299438,3091.6,3090.0,0.16202]
[1768228628286,3.61199438,3091.5,3090.0,0.16202]
[1768228628486,3.61199438,3091.5,3089.3,0.16205]
[1768228628988,3.77393438,3091.5,3089.3,0.16205]
[1768228629190,3.61199438,3091.3,3088.8,1.88453499]
[1768228629391,3.61199438,3090.8,3088.7,0.16544621]
[1768228629594,3.61199438,3090.6,3088.7,0.16544621]
[1768228630084,8.13099438,3090.5,3088.7,0.16544621]
[1768228630279,1.281,3090.4,3088.9,1.88453499]
[1768228630676,3.61199438,3090.3,3088.8,0.16208]
[1768228631987,3.61199438,3090.3,3088.7,0.00335621]
[1768228631988,1.281,3090.4,3089.0,0.16207]
[1768228632586,3.61278502,3090.9,3089.0,0.16207]
[1768228632786,3.61278502,3090.7,3089.0,0.16207]
[1768228632987,1.281,3090.6,3089.0,0.16207]
[1768228633292,1.281,3090.5,3089.0,0.16207]
[1768228633587,3.61278502,3090.4,3088.7,0.00335621]
[1768228634285,8.13178502,3090.3,3088.7,0.00335621]
[1768228634489,3.61278502,3090.2,3088.7,0.00335621]
[1768228634678,3.61278502,3090.2,3088.5,1.20355889]
[1768228635192,3.61278502,3090.2,3089.0,1.88453499]
[1768228635397,3.61278502,3090.8,3089.3,0.16205]
[1768228635587,1.281,3091.0,3089.5,1.88453499]
[1768228635982,0.0028355,3091.7,3090.2,1.88453499]
[1768228636285,4.89378502,3092.0,3090.4,0.162]
[1768228636489,4.53572937,3091.9,3089.7,0.16203]
[1768228636684,3.61278502,3091.7,3089.3,1.88818438]
[1768228636889,3.61278502,3091.3,3089.3,0.00364939]
[1768228637088,3.61278502,3091.1,3089.3,0.00364939]
[1768228637785,3.61278502,3090.9,3089.3,0.00364939]
[1768228638093,3.61278502,3090.4,3087.9,2.04666499]
[1768228638288,3.61278502,3090.4,3088.0,1.1]
[1768228638493,3.61278502,3090.4,3087.9,2.04666499]
[1768228638494,3.61278502,3090.4,3087.9,0.16213]
[1768228638693,3.61278502,3090.2,3087.9,0.16213]
[1768228638889,3.61278502,3090.0,3087.9,0.16213]
[1768228639086,3.61278502,3089.8,3087.5,1.1]
[1768228639392,3.61278502,3089.8,3088.0,1.88453499]
[1768228639594,3.61278502,3089.8,3088.0,2.04665499]
[1768228639795,1.281,3089.7,3088.1,0.16212]
[1768228640095,1.281,3090.1,3088.5,2.04663499]
[1768228640287,1.281,3090.3,3088.7,0.16208]
[1768228640989,3.61278502,3090.2,3088.1,0.00352539]
[1768228641786,3.61278502,3089.8,3088.1,0.00352539]
[1768228641997,3.77481502,3089.8,3088.1,0.00352539]
[1768228642391,1.282,3089.7,3088.1,0.00352539]
[1768228642792,1.282,3089.9,3088.3,0.16211]
[1768228643995,1.282,3090.0,3088.4,0.1621]
[1768228644200,3.61278502,3090.4,3088.6,1.88453499]
[1768228644395,1.282,3090.3,3088.6,1.88453499]
[1768228644600,1.282,3090.3,3088.4,0.1621]
[1768228644800,4.89478502,3090.3,3088.4,0.1621]
[1768228644994,3.61278502,3090.9,3088.7,0.16208]
[1768228645195,0.92258797,3090.8,3089.1,2.04659499]
[1768228645402,1.282,3090.7,3089.1,2.04659499]
[1768228645595,3.61278502,3090.9,3089.1,1.88453499]
[1768228645792,0.16562475,3091.3,3088.7,3.41369599]
[1768228645793,0.00367475,3091.3,3089.7,0.16203]
[1768228646800,0.00367475,3091.3,3090.1,1.88453499]
[1768228646997,1.282,3092.2,3090.6,1.88453499]
[1768228647397,1.282,3092.4,3090.7,0.16198]
[1768228647599,3.61278502,3092.7,3090.8,0.16197]
[1768228647798,1.282,3092.6,3090.8,0.16197]
[1768228647995,1.28540353,3092.6,3090.8,0.16444921]
[1768228648204,0.00340353,3092.6,3090.8,0.16444921]
[1768228648607,0.00340353,3092.6,3091.3,0.16195]
[1768228648793,3.61278502,3093.0,3090.9,1.88453499]
[1768228648997,3.61278502,3092.8,3090.8,1.10247921]
[1768228649395,3.61278502,3092.6,3090.8,1.10247921]
[1768228649807,3.61539805,3092.6,3090.8,1.10247921]
[1768228650003,3.61539805,3092.6,3090.8,0.00247921]
[1768228650398,3.61278502,3092.4,3090.8,0.00247921]
[1768228650801,3.77467502,3092.4,3090.8,0.00247921]
[1768228651105,4.52,3092.3,3090.8,0.00247921]
[1768228651404,4.89478502,3092.2,3090.8,0.00247921]
[1768228651609,3.61278502,3091.9,3089.6,2.04657499]
[1768228651907,3.77475502,3090.9,3088.7,8.53623098]
[1768228652107,4.89478502,3090.8,3088.8,1.1]
[1768228652305,3.61278502,3090.8,3088.8,4.51369599]
[1768228652607,3.61278502,3090.8,3089.2,1.88453499]
[1768228652608,1.282,3090.8,3089.2,1.88453499]
[1768228652802,1.282,3090.8,3089.2,1.88848714]
[1768228653509,3.77473502,3091.4,3089.2,1.88848714]
[1768228653809,3.77473502,3091.4,3089.3,0.16205]
[1768228654014,4.52,3091.3,3089.3,0.16205]
[1768228654317,3.61278502,3091.4,3089.7,2.04656499]
[1768228654514,3.47236362,3092.0,3089.7,2.04656499]
[1768228654716,3.47236362,3091.8,3089.7,5.45597427]
[1768228655718,3.47236362,3091.8,3089.8,0.16203]
[1768228656516,1.282,3091.9,3090.2,1.88453499]
[1768228657115,3.47236362,3092.4,3090.2,1.88453499]
[1768228657315,1.282,3092.0,3090.2,1.88453499]
[1768228658111,4.75436362,3092.0,3089.8,3.40940928]
[1768228658317,3.47236362,3091.9,3089.8,3.57143928]
[1768228658522,1.282,3091.8,3089.9,0.16202]
[1768228658722,1.282,3091.8,3089.9,1.26202]
[1768228659224,4.75436362,3091.8,3089.9,1.26202]
[1768228659426,3.47236362,3091.7,3089.9,1.26202]
[1768228659717,3.47236362,3091.7,3089.2,3.41336143]
[1768228659718,3.63430362,3091.6,3089.2,3.57542143]
[1768228659922,1.88453499,3091.7,3089.2,3.57542143]
[1768228659923,3.63431362,3091.4,3089.2,3.57542143]
[1768228660628,3.63431362,3091.4,3089.2,3.41336143]
[1768228660823,3.47236362,3091.2,3089.2,3.41336143]
[1768228661024,3.47236362,3091.2,3089.4,0.16205]
[1768228661225,3.63432362,3091.2,3089.2,0.00395215]
[1768228661427,3.47236362,3091.0,3089.2,0.00395215]
[1768228661725,4.75436362,3090.9,3089.2,0.00395215]
[1768228661924,3.47236362,3090.8,3089.2,0.00395215]
[1768228663433,4.52,3090.7,3089.2,0.00395215]
[1768228663732,1.282,3090.6,3089.2,0.00395215]
[1768228664029,3.47236362,3090.5,3088.6,0.16209]
[1768228664229,3.47236362,3090.3,3088.1,0.16211]
[1768228664527,3.47236362,3090.3,3088.2,0.16211]
[1768228664728,1.282,3090.2,3088.4,0.1621]
[1768228665125,0.00226437,3090.2,3088.4,3.41345438]
[1768228665328,3.47236362,3090.9,3089.2,0.16206]
[1768228665633,3.47236362,3090.7,3088.4,0.0040451]
[1768228665834,3.47236362,3090.2,3088.4,0.0040451]
[1768228666134,3.47236362,3090.0,3088.4,0.0040451]
[1768228666340,0.16203,3089.7,3088.4,0.0040451]
[1768228666631,3.63441362,3089.4,3087.0,3.57157928]
[1768228666844,3.47236362,3089.2,3087.0,3.57157928]
[1768228667137,3.47236362,3089.2,3087.0,0.16217]
[1768228667333,3.47236362,3089.0,3087.0,0.16217]
[1768228667629,1.282,3088.9,3087.0,1.26217]
[1768228667834,1.282,3088.9,3087.0,1.26485133]
[1768228668432,3.47236362,3088.8,3087.0,1.26485133]
[1768228668632,3.47236362,3088.8,3087.0,0.16485133]
[1768228669137,3.47236362,3088.5,3087.0,0.00268133]
[1768228669433,3.63446362,3088.5,3087.0,0.00268133]
[1768228671226,3.47236362,3088.3,3086.3,1.1]
[1768228671530,3.47236362,3088.3,3086.3,0.16221]
[1768228672338,1.283,3088.2,3086.3,0.16221]
[1768228672538,4.75536362,3088.2,3086.3,0.16628881]
[1768228672756,4.75536362,3088.2,3086.4,0.16221]
[1768228673041,3.47236362,3088.2,3086.5,0.1622]
[1768228673243,1.283,3088.1,3086.5,0.1622]
[1768228674340,1.283,3088.3,3086.5,3.57160928]
[1768228674543,4.75536362,3088.3,3086.5,0.1622]
[1768228674839,3.47236362,3088.2,3086.5,0.1622]
[1768228675247,1.283,3088.1,3086.5,0.1622]
[1768228675944,4.75536362,3088.1,3086.5,0.1622]
[1768228676244,1.283,3088.0,3086.5,0.1622]
[1768228676542,1.28598545,3088.0,3086.5,0.1622]
[1768228677144,0.00298545,3088.0,3086.3,3.41348809]
[1768228677338,0.00298545,3088.0,3086.7,0.16219]
[1768228678852,0.113,3088.6,3086.7,9.40940928]
[1768228679041,0.113,3088.6,3087.0,0.16217]
[1768228679241,0.113,3088.6,3087.0,3.57157928]
[1768228679446,0.113,3088.6,3087.1,0.16217]
[1768228679943,0.1168544,3088.6,3087.1,0.16217]
[1768228680343,3.47236362,3089.5,3087.7,0.16214]
[1768228680646,4.75536362,3089.5,3087.7,0.16214]
[1768228681035,4.41443161,3091.4,3087.5,3.40940928]
[1768228681243,3.47236362,3090.2,3087.7,3.40940928]
[1768228681444,3.47555249,3090.2,3088.2,0.16211]
[1768228681845,0.00318887,3090.2,3088.4,3.40940928]
[1768228682053,0.00318887,3090.2,3088.5,0.1621]
[1768228682343,0.00318887,3090.2,3088.5,0.16454809]
[1768228682947,0.00318887,3090.2,3088.5,9.41185737]
[1768228683147,3.47236362,3091.6,3088.7,3.40940928]
[1768228683339,3.47236362,3091.6,3089.0,2.13965033]
[1768228683540,0.16191,3092.2,3088.7,6.0]
[1768228683541,3.47236362,3092.2,3090.1,0.16201]
[1768228683947,3.47236362,3092.2,3089.6,0.16204]
[1768228684249,3.47638057,3092.2,3089.6,3.62167749]
[1768228684456,4.75938057,3092.2,3090.0,3.45963749]
[1768228684749,4.75938057,3092.2,3090.1,0.16201]
[1768228684950,3.30670498,3092.1,3090.1,0.16201]
[1768228685147,3.30670498,3092.1,3090.1,3.62164749]
[1768228685350,1.28701695,3092.2,3090.2,3.62164749]
[1768228685748,0.00401695,3092.2,3090.3,3.62163749]
[1768228686048,0.00401695,3092.2,3090.5,0.16199]
[1768228686251,0.00401695,3092.2,3090.7,0.16198]
[1768228686552,0.00401695,3092.2,3090.8,3.62160749]
[1768228686753,3.30670498,3093.2,3090.8,3.62160749]
[1768228687351,3.30670498,3093.2,3090.9,3.62160749]
[1768228687659,3.30934429,3093.2,3091.2,0.16195]
[1768228687953,0.00263931,3093.2,3091.5,0.16194]
[1768228689154,0.00263931,3093.2,3091.5,3.62157749]
[1768228689555,0.00263931,3093.2,3091.7,3.62155749]
[1768228689953,0.00263931,3093.2,3091.7,4.72155749]
[1768228690661,0.00263931,3093.2,3091.7,0.16192]
[1768228691158,0.00263931,3093.2,3091.7,3.62155749]
[1768228692056,0.00263931,3093.2,3091.1,3.46632938]
[1768228692454,3.48922348,3093.2,3091.0,0.16196]
[1768228692655,0.00263931,3093.2,3091.2,3.46632938]
[1768228692855,0.00263931,3093.2,3091.5,3.46632938]
[1768228693058,3.48658417,3094.3,3091.9,3.46632938]
[1768228693261,3.48658417,3094.3,3092.0,0.16191]
[1768228693655,3.64837417,3094.3,3091.3,3.62827938]
[1768228693857,3.64837417,3094.3,3091.7,3.46632938]
[1768228694061,3.48658417,3094.2,3091.7,3.46632938]
[1768228694466,3.48658417,3094.2,3091.8,0.16192]
[1768228694659,3.48658417,3094.2,3091.9,3.62824938]
[1768228694965,3.48658417,3094.2,3092.0,3.62823938]
[1768228696674,3.64838417,3094.2,3092.0,0.16191]
[1768228696880,3.48658417,3094.0,3092.0,0.16191]
[1768228697075,3.48658417,3093.7,3091.5,3.46632938]
[1768228697574,3.48658417,3093.5,3091.5,3.46632938]
[1768228698167,3.48658417,3093.5,3091.3,0.16195]
[1768228698881,6.88539417,3094.1,3091.8,0.16192]
[1768228699181,6.72358417,3094.1,3092.2,0.1619]
[1768228699480,0.00283685,3094.3,3092.5,0.16188]
[1768228700483,0.00283685,3094.3,3092.5,3.62820938]
[1768228700785,3.48658417,3094.1,3091.9,5.76789971]
[1768228701076,3.64838417,3094.1,3091.9,3.62824938]
[1768228701468,3.48658417,3093.5,3091.3,3.62827938]
[1768228702071,3.64844417,3093.1,3090.8,1.1]
[1768228702273,0.16186,3093.1,3091.2,0.16195]
[1768228702479,3.48658417,3093.6,3091.7,3.62825938]
[1768228702886,3.48658417,3093.6,3091.8,0.16192]
[1768228703190,3.48658417,3093.6,3091.9,0.16192]
[1768228703982,1.281,3094.0,3091.7,3.46632938]
[1768228704178,0.1618,3094.1,3092.2,0.1619]
[1768228704380,3.48658417,3094.2,3092.3,0.16189]
[1768228705493,3.48658417,3094.2,3092.4,0.16189]
[1768228705689,0.00283685,3094.3,3092.2,3.46632938]
[1768228705897,0.00283685,3094.3,3092.9,0.16187]
[1768228706093,0.00283685,3094.3,3093.0,0.16186]
[1768228709502,0.00283685,3094.3,3092.9,0.00339132]
[1768228709802,0.00283685,3094.3,3092.9,3.4697207]
[1768228710106,3.48658417,3095.4,3093.6,0.16183]
[1768228710400,3.48658417,3096.1,3094.2,0.1618]
[1768228710800,3.48658417,3096.1,3094.3,0.16179]
[1768228711097,3.49012736,3096.1,3094.3,0.16179]
[1768228713403,3.49012736,3096.1,3093.8,3.46632938]
[1768228713404,3.49012736,3096.1,3094.4,0.16179]
[1768228713891,0.00354319,3096.1,3094.7,3.46632938]
[1768228714100,1.20355889,3096.2,3094.7,3.46632938]
[1768228714302,1.20355889,3096.2,3095.3,0.16174]
[1768228714795,3.48658417,3097.3,3095.5,0.16173]
[1768228715198,3.4895798,3097.3,3095.5,0.1647336]
[1768228715391,3.4895798,3097.3,3095.6,0.16172]
[1768228715600,3.4895798,3097.3,3095.5,0.0030036]
[1768228715601,3.4895798,3097.3,3095.7,0.16172]
[1768228716104,0.00299563,3097.3,3095.8,4.69221056]
[1768228716300,0.16155,3098.9,3095.9,3.59221056]
[1768228716497,3.62308096,3098.7,3095.9,3.59221056]
[1768228717406,3.62698969,3098.7,3096.5,0.16167]
[1768228717905,3.62698969,3098.7,3095.9,3.59221056]
[1768228717906,3.62698969,3098.7,3096.6,0.16167]
[1768228718394,3.62308096,3098.5,3096.1,0.1617]
[1768228718594,3.62308096,3098.5,3095.9,3.59221056]
[1768228719405,3.62308096,3098.5,3096.6,0.16167]
[1768228721003,3.62308096,3098.5,3096.8,0.16166]
[1768228721200,3.62308096,3098.5,3096.9,0.16166]
[1768228721602,3.62308096,3098.5,3097.0,1.1]
[1768228722303,3.62308096,3098.5,3096.9,0.16166]
[1768228722807,3.62308096,3098.5,3096.9,1.26166]
[1768228723210,3.62308096,3098.5,3096.1,3.233]
[1768228723412,3.62308096,3098.5,3096.3,0.16169]
[1768228723608,3.62308096,3098.5,3095.9,6.18062637]
[1768228723803,0.00390873,3098.7,3096.5,6.18062637]
[1768228724004,3.62308096,3099.7,3097.4,3.59221056]
[1768228724205,3.62308096,3100.3,3098.2,2.58841581]
[1768228724402,3.62308096,3100.9,3098.8,2.58841581]
[1768228724611,3.62308096,3100.9,3099.4,0.16153]
[1768228724906,3.62308096,3100.9,3098.5,2.58841581]
[1768228725209,3.62308096,3100.9,3096.4,2.58667067]
[1768228725210,3.78457096,3100.2,3096.4,2.58841581]
[1768228725400,3.62308096,3100.0,3097.0,6.18062637]
[1768228725708,3.62308096,3099.8,3097.1,3.232]
[1768228725912,3.62308096,3099.8,3098.5,0.16157]
[1768228726212,3.62308096,3099.8,3098.5,0.1641318]
[1768228726707,3.62308096,3099.8,3098.5,0.0025618]
[1768228727512,3.62308096,3099.7,3097.8,0.16161]
[1768228727713,3.62308096,3099.7,3097.8,1.26161]
[1768228728113,3.62308096,3099.7,3097.1,3.59221056]
[1768228728313,1.279,3099.6,3097.7,0.16161]
[1768228728510,1.279,3099.6,3098.0,0.1616]
[1768228728511,3.62308096,3099.6,3098.0,0.1616]
[1768228728715,3.62308096,3099.6,3098.1,0.16159]
[1768228728916,3.62308096,3099.6,3098.2,0.16159]
[1768228729409,3.62308096,3099.6,3097.8,1.1]
[1768228729605,3.62308096,3099.6,3097.8,1.26161]
[1768228731015,3.62308096,3099.6,3097.8,0.16161]
[1768228731410,3.62308096,3099.6,3098.0,0.1616]
[1768228731607,3.62308096,3100.2,3098.3,0.16158]
[1768228731809,4.90208096,3100.1,3098.3,0.16158]
[1768228732009,3.62308096,3100.0,3098.3,0.16158]
[1768228732618,3.62308096,3100.0,3097.9,1.1]
[1768228732803,3.62308096,3100.0,3098.5,0.16157]
[1768228733217,3.62308096,3099.8,3097.7,0.16472181]
[1768228733416,3.62308096,3099.6,3097.7,0.16472181]
[1768228733713,3.62308096,3099.4,3097.7,0.16472181]
[1768228734113,3.62308096,3099.4,3097.7,0.00311181]
[1768228734414,3.62308096,3099.6,3097.7,0.00311181]
[1768228734714,4.90208096,3099.5,3098.0,0.1616]
[1768228734908,3.62308096,3099.4,3098.0,0.1616]
[1768228735605,1.279,3099.3,3098.0,0.1616]
[1768228735927,3.62308096,3099.2,3098.0,0.1616]
[1768228736217,1.279,3099.4,3098.1,0.16159]
[1768228736522,3.23,3100.3,3098.7,0.16156]
[1768228736707,1.279,3100.2,3098.7,0.16156]
[1768228736908,3.62308096,3100.1,3098.7,0.16156]
[1768228737310,3.62308096,3100.1,3098.8,0.16156]
[1768228737510,3.62308096,3100.1,3099.1,0.16154]
[1768228737712,3.62308096,3101.0,3098.5,3.59221056]
[1768228737916,3.62308096,3101.0,3099.6,0.16151]
[1768228738221,4.90208096,3101.0,3099.6,0.16151]
[1768228738420,3.62308096,3101.6,3099.0,3.59221056]
[1768228738623,3.62308096,3101.6,3099.9,0.1615]
[1768228738920,3.62308096,3101.6,3099.9,0.16472357]
[1768228739322,2.46479617,3101.1,3099.9,0.16472357]
[1768228739713,1.18579617,3101.1,3099.9,0.16472357]
[1768228740017,4.80887713,3101.1,3099.9,0.00322357]
[1768228740224,1.18579617,3101.1,3099.9,0.16472357]
[1768228741123,1.18579617,3101.1,3099.9,0.00322357]
[1768228741319,1.18579617,3101.1,3100.3,0.16148]
[1768228741520,8.13208096,3102.2,3100.5,0.16147]
[1768228741722,3.62308096,3103.3,3100.1,2.58841581]
[1768228741914,3.62308096,3102.9,3100.9,0.16145]
[1768228742221,3.62308096,3102.9,3100.1,3.59221056]
[1768228742420,0.00275049,3102.9,3101.6,0.16141]
[1768228742823,0.00275049,3102.9,3101.0,6.18062637]
[1768228743123,0.00275049,3102.9,3102.1,0.16138]
[1768228743329,0.00275049,3102.9,3102.1,0.00254665]
[1768228745722,3.46952395,3104.3,3102.1,6.00254665]
[1768228746019,3.229,3104.5,3102.1,0.16393665]
[1768228746020,3.46952395,3104.1,3102.1,0.16393665]
[1768228746424,3.46952395,3104.1,3102.1,0.00254665]
[1768228746929,3.47305145,3104.1,3102.1,0.00254665]
[1768228747420,7.97552395,3104.0,3102.1,0.00254665]
[1768228747625,3.46952395,3103.9,3102.1,0.00254665]
[1768228748020,3.46952395,3103.7,3102.1,0.00254665]
[1768228748329,3.46952395,3103.5,3102.1,0.00254665]
[1768228748535,3.46952395,3103.4,3102.1,0.00254665]
[1768228748929,3.46952395,3103.2,3101.3,0.16143]
[1768228749120,1.278,3103.1,3101.4,0.16142]
[1768228749424,3.46952395,3103.0,3100.5,3.4603725]
[1768228749629,3.46952395,3102.8,3101.2,0.16143]
[1768228749827,3.46952395,3102.8,3101.2,0.16380975]
[1768228750025,3.46952395,3103.4,3101.7,0.1614]
[1768228750333,3.46952395,3103.4,3102.1,0.16139]
[1768228750720,3.46952395,3104.0,3101.5,3.4603725]
[1768228750916,3.46952395,3103.9,3101.5,3.4603725]
[1768228751132,0.0035275,3104.1,3102.9,0.16134]
[1768228751533,0.0035275,3104.1,3102.1,3.4603725]
[1768228751731,0.0035275,3104.1,3103.1,0.16133]
[1768228751931,0.0035275,3104.1,3102.3,3.4603725]
[1768228751932,0.0035275,3104.1,3103.3,0.16132]
[1768228752134,4.74752395,3105.1,3102.7,3.29747675]
[1768228752434,3.33275939,3105.0,3102.6,0.16136]
[1768228752739,3.33275939,3104.3,3102.2,1.1]
[1768228753037,3.33275939,3104.3,3101.7,6.52447675]
[1768228753232,0.00257751,3104.3,3102.3,3.29747675]
[1768228753533,0.00257751,3104.3,3102.4,4.39747675]
[1768228754035,0.00257751,3104.3,3103.0,0.16134]
[1768228754239,3.3353369,3104.3,3102.4,1.1]
[1768228754428,0.00257751,3104.3,3103.5,0.16131]
[1768228754737,1.277,3105.4,3103.7,0.1613]
[1768228755032,3.33275939,3105.3,3103.7,0.1613]
[1768228755433,3.33275939,3105.1,3103.5,0.00317573]
[1768228755635,3.33275939,3104.5,3102.6,0.16136]
[1768228756024,3.33275939,3104.3,3102.6,0.16136]
[1768228756226,0.00386452,3105.1,3102.1,1.1]
[1768228756227,3.33275939,3104.9,3102.2,3.29747675]
[1768228756424,0.00386452,3105.1,3102.9,3.29747675]
[1768228756727,3.33662391,3105.1,3102.9,0.16488527]
[1768228756932,3.33662391,3105.1,3103.2,0.16133]
[1768228757131,3.33662391,3105.1,3102.9,0.00354527]
[1768228757132,3.33275939,3104.9,3103.3,0.16132]
[1768228757331,3.33275939,3104.6,3102.9,0.00354527]
[1768228757834,3.33275939,3104.6,3103.1,0.16133]
[1768228758337,3.33275939,3104.6,3102.9,0.00354527]
[1768228758733,3.33275939,3104.6,3103.4,0.16132]
[1768228759228,3.33275939,3104.6,3102.9,0.00354527]
[1768228759628,3.33275939,3104.6,3102.9,0.16488527]
[1768228760128,1.277,3104.5,3102.9,0.16488527]
[1768228760323,3.33275939,3104.4,3103.0,0.16134]
[1768228760629,4.60975939,3104.4,3103.0,0.16134]
[1768228760935,3.33275939,3104.3,3103.0,0.16134]
[1768228761234,3.33275939,3104.9,3103.7,0.1613]
[1768228761436,0.00386452,3105.1,3103.7,0.1613]
[1768228761837,1.28086452,3105.1,3103.7,0.1613]
[1768228762034,0.00386452,3105.1,3103.1,1.1]
[1768228762238,0.00386452,3105.1,3103.8,0.1613]
[1768228762438,0.00386452,3105.1,3104.2,0.16127]
[1768228762644,3.33275939,3106.1,3104.2,2.57661035]
[1768228762936,3.33275939,3106.1,3104.7,0.16125]
[1768228763331,3.33275939,3106.0,3103.8,1.1]
[1768228763641,0.00284586,3106.0,3105.2,0.16122]
[1768228763834,0.00284586,3106.0,3105.2,0.16478792]